lending/lending_fUSD_20240504
["ID","MTS","AMOUNT","RATE_DAILY","PERIOD"]
[325386708,1714804291491,-500.0,0.00041095,30]
[325386709,1714804291500,-172.192941,0.00041095,14]
[325386710,1714804291510,-938.06,0.00041095,30]
[325386711,1714804291519,-947.85,0.00041095,30]
[325386712,1714804291530,-12968.54,0.00041095,30]
[325386713,1714804291539,-505.09684221,0.00041095,30]
[325386714,1714804291548,-726.22,0.00041095,30]
[325386715,1714804291558,-500.0,0.00041095,30]
[325386716,1714804291568,-500.0,0.00041095,30]
[325386717,1714804291577,-500.0,0.00041095,30]
[325386718,1714804291587,-947.1,0.00041095,30]
[325386719,1714804291602,-568.28507955,0.00041095,30]
[325386720,1714804291612,-1340.71,0.00041095,30]
[325386721,1714804291621,-6414.81,0.00041095,30]
[325386722,1714804291630,-716.78,0.00041095,30]
[325386723,1714804291641,-553.36699047,0.00041095,30]
[325386724,1714804291651,-2129.67,0.00041095,30]
[325386725,1714804291660,-500.0,0.00041095,30]
[325386726,1714804291670,-1522.4,0.00041095,30]
[325386727,1714804291680,-500.0,0.00041095,30]
[325386728,1714804291689,-500.0,0.00041095,31]
[325386729,1714804291698,-500.0,0.00041095,32]
[325386730,1714804291707,-1929.28,0.00041095,30]
[325386731,1714804291717,-500.0,0.00041095,33]
[325386732,1714804291726,-500.0,0.00041095,34]
[325386733,1714804291735,-500.0,0.00041095,35]
[325386734,1714804291744,-5520.51,0.00041095,21]
[325386735,1714804291754,-500.0,0.00041095,36]
[325386736,1714804291763,-465.34518531,0.00041095,37]
[325386737,1714804291772,-915.88,0.00041095,30]
[325386738,1714804291782,-2092.91,0.00041095,30]
[325386739,1714804291791,-970.28,0.00041095,30]
[325386740,1714804291801,-507.1971193,0.00041095,30]
[325386741,1714804291809,-500.0,0.00041095,30]
[325386742,1714804291819,-2605.76,0.00041095,30]
[325386743,1714804291828,-2385.99,0.00041095,30]
[325386744,1714804291837,-3054.43,0.00041095,30]
[325386745,1714804291846,-500.0,0.00041095,30]
[325386746,1714804291855,-500.0,0.00041095,30]
[325386747,1714804291864,-500.0,0.00041095,30]
[325386748,1714804291873,-1819.56,0.00041095,30]
[325386749,1714804291882,-10782.53,0.00041095,30]
[325386750,1714804291892,-4442.63,0.00041095,30]
[325386751,1714804291900,-1263.05,0.00041095,30]
[325386752,1714804291910,-500.0,0.00041095,30]
[325386753,1714804291919,-4022.79,0.00041095,30]
[325386754,1714804291928,-1576.09,0.00041095,30]
[325386755,1714804291938,-1365.54,0.00041095,30]
[325386756,1714804291947,-500.0,0.00041095,30]
[325386757,1714804291956,-1705.52,0.00041095,30]
[325386758,1714804291965,-503.01660374,0.00041095,30]
[325386759,1714804291975,-2810.11,0.00041095,30]
[325386760,1714804291984,-748.01,0.00041095,30]
[325386761,1714804291993,-571.93028283,0.00041095,30]
[325386762,1714804292002,-12234.69,0.00041095,30]
[325386763,1714804292011,-1307.25,0.00041095,30]
[325386764,1714804292020,-500.0,0.00041095,30]
[325386765,1714804292030,-500.81823482,0.00041095,30]
[325386766,1714804292040,-500.0,0.00041095,30]
[325386767,1714804292050,-3977.51,0.00041095,30]
[325386768,1714804292059,-500.0,0.00041095,30]
[325386769,1714804292069,-4660.21,0.00041095,30]
[325386770,1714804292078,-967.89,0.00041095,30]
[325386771,1714804292088,-500.0,0.00041095,30]
[325386772,1714804292097,-500.0,0.00041095,30]
[325386773,1714804292107,-776.33,0.00041095,30]
[325386774,1714804292116,-1065.54,0.00041095,30]
[325386775,1714804292125,-7335.72,0.00041095,30]
[325386776,1714804292135,-8237.14,0.00041095,30]
[325386777,1714804292145,-1229.6,0.00041095,30]
[325386778,1714804292154,-500.0,0.00041095,30]
[325386779,1714804292164,-500.0,0.00041095,30]
[325386780,1714804292173,-501.89573023,0.00041095,30]
[325386781,1714804292183,-9157.07,0.00041095,30]
[325386782,1714804292193,-1731.71,0.00041095,7]
[325386783,1714804292203,-500.0,0.00041095,30]
[325386784,1714804292212,-31730.81,0.00041095,30]
[325386785,1714804292221,-525.28,0.00041095,30]
[325386786,1714804292231,-4619.09,0.00041095,30]
[325386787,1714804292240,-500.0,0.00041095,30]
[325386788,1714804292250,-251.55410664,0.00041095,30]
[325386789,1714804292259,-500.0,0.00041095,30]
[325386790,1714804292269,-500.0,0.00041095,30]
[325386791,1714804292279,-3643.87,0.00041095,30]
[325386792,1714804292288,-2647.02,0.00041095,30]
[325386793,1714804292298,-4632.62,0.00041095,30]
[325386794,1714804292308,-6453.35,0.00041095,30]
[325386795,1714804292318,-680.04,0.00041095,30]
[325386796,1714804292328,-500.0,0.00041095,30]
[325386797,1714804292338,-652.83,0.00041095,30]
[325386798,1714804292348,-691.83,0.00041095,30]
[325386799,1714804292358,-2668.9,0.00041095,30]
[325386800,1714804292367,-2346.43,0.00041095,30]
[325386801,1714804292377,-157.46619685,0.00041095,30]
[325386802,1714804292386,-2792.73,0.00041095,30]
[325386803,1714804292396,-500.0,0.00041095,30]
[325386804,1714804292406,-1000.0,0.00041095,2]
[325386805,1714804292417,-3148.65,0.00041095,30]
[325386806,1714804292427,-2481.16,0.00041095,30]
[325386807,1714804292437,-3877.09,0.00041095,30]
[325386808,1714804292446,-759.08,0.00041095,30]
[325386809,1714804292456,-500.0,0.00041095,30]
[325386810,1714804292467,-639.07503542,0.00041095,30]
[325386811,1714804292477,-600.45,0.00041095,30]
[325386812,1714804292487,-504.74193563,0.00041095,30]
[325386813,1714804292498,-1079.19,0.00041095,30]
[325386814,1714804292508,-500.0,0.00041095,30]
[325386815,1714804292519,-1158.96,0.00041095,30]
[325386816,1714804292531,-500.0,0.00041095,30]
[325386817,1714804292541,-1331.07,0.00041095,30]
[325386818,1714804292552,-2630.37,0.00041095,30]
[325386819,1714804292562,-994.12,0.00041095,30]
[325386820,1714804292572,-1950.7,0.00041095,30]
[325386821,1714804292583,-1146.45,0.00041095,30]
[325386822,1714804292593,-500.0,0.00041095,30]
[325386823,1714804292608,-673.2,0.00041095,30]
[325386824,1714804292617,-502.80967786,0.00041095,30]
[325386825,1714804292629,-2894.37,0.00041095,30]
[325386826,1714804292639,-500.0,0.00041095,30]
[325386827,1714804292650,-1144.77,0.00041095,30]
[325386828,1714804292660,-950.88,0.00041095,30]
[325386829,1714804292670,-2300.61,0.00041095,30]
[325386830,1714804292680,-788.23,0.00041095,30]
[325386831,1714804292692,-1244.02,0.00041095,30]
[325386832,1714804292702,-500.0,0.00041095,30]
[325386833,1714804292712,-723.05,0.00041095,30]
[325386834,1714804292722,-500.0,0.00041095,30]
[325386835,1714804292732,-3968.19,0.00041095,30]
[325386836,1714804292743,-500.0,0.00041095,30]
[325386837,1714804292753,-3645.56,0.00041095,30]
[325386838,1714804292763,-662.42,0.00041095,30]
[325386839,1714804292772,-1486.4,0.00041095,30]
[325386840,1714804292783,-500.0,0.00041095,30]
[325386841,1714804292793,-500.0,0.00041095,30]
[325386842,1714804292803,-827.29,0.00041095,30]
[325386843,1714804292813,-1135.66,0.00041095,30]
[325386844,1714804292824,-500.0,0.00041095,30]
[325386845,1714804292834,-2262.12,0.00041095,30]
[325386846,1714804292844,-13152.38,0.00041095,30]
[325386847,1714804292854,-500.0,0.00041095,30]
[325386848,1714804292863,-1854.95,0.00041095,30]
[325386849,1714804292873,-500.0,0.00041095,30]
[325386850,1714804292883,-2406.32,0.00041095,30]
[325386851,1714804292893,-300.0,0.00041096,10]
[325386852,1714804292903,-300.0,0.00041096,10]
[325386853,1714804292912,-300.0,0.00041096,10]
[325386854,1714804292922,-300.0,0.00041096,10]
[325386855,1714804292932,-300.0,0.00041096,10]
[325386856,1714804292942,-300.0,0.00041096,10]
[325386857,1714804292951,-300.0,0.00041096,10]
[325386858,1714804292962,-300.0,0.00041096,10]
[325386859,1714804292972,-300.0,0.00041096,10]
[325386860,1714804292981,-300.0,0.00041096,10]
[325386861,1714804292991,-300.0,0.00041096,10]
[325386862,1714804293001,-300.0,0.00041096,10]
[325386863,1714804293011,-300.0,0.00041096,10]
[325386864,1714804293020,-300.0,0.00041096,10]
[325386865,1714804293030,-300.0,0.00041096,10]
[325386866,1714804293040,-300.0,0.00041096,10]
[325386867,1714804293050,-300.0,0.00041096,10]
[325386868,1714804293060,-300.0,0.00041096,10]
[325386869,1714804293070,-300.0,0.00041096,10]
[325386870,1714804293080,-300.0,0.00041096,10]
[325386871,1714804293090,-300.0,0.00041096,10]
[325386872,1714804293100,-300.0,0.00041096,10]
[325386873,1714804293110,-300.0,0.00041096,10]
[325386874,1714804293120,-300.0,0.00041096,10]
[325386875,1714804293130,-300.0,0.00041096,10]
[325386876,1714804293140,-300.0,0.00041096,10]
[325386877,1714804293150,-300.0,0.00041096,10]
[325386878,1714804293159,-300.0,0.00041096,10]
[325386879,1714804293169,-300.0,0.00041096,10]
[325386880,1714804293179,-300.0,0.00041096,10]
[325386881,1714804293189,-300.0,0.00041096,10]
[325386882,1714804293198,-300.0,0.00041096,10]
[325386883,1714804293208,-300.0,0.00041096,10]
[325386884,1714804293219,-300.0,0.00041096,10]
[325386885,1714804293229,-300.0,0.00041096,10]
[325386886,1714804293239,-300.0,0.00041096,10]
[325386887,1714804293249,-300.0,0.00041096,10]
[325386888,1714804293258,-300.0,0.00041096,10]
[325386889,1714804293268,-300.0,0.00041096,10]
[325386890,1714804293278,-300.0,0.00041096,10]
[325386891,1714804293288,-300.0,0.00041096,10]
[325386892,1714804293298,-300.0,0.00041096,10]
[325386893,1714804293308,-577.87825694,0.00041096,10]
[325386894,1714804293319,-151.33,0.00041096,2]
[325386895,1714804293329,-157.0,0.00041096,2]
[325386896,1714804293340,-1000.0,0.00041096,30]
[325386897,1714804293349,-500.0,0.00041096,2]
[325386898,1714804293360,-150.0,0.00041174,30]
[325386899,1714804293370,-151.87517469,0.00041234,60]
[325386900,1714804293380,-1000.0,0.00041267,30]
[325386901,1714804293389,-150.0,0.00041272,30]
[325386902,1714804293399,-194.66901,0.00041288,30]
[325386903,1714804293410,-173.25,0.000413,7]
[325386904,1714804293420,-500.0,0.00041317,30]
[325386905,1714804293429,-597.03,0.00041317,30]
[325386906,1714804293439,-279.94872111,0.00041353,30]
[325386907,1714804293449,-211.0,0.0004136,2]
[325386908,1714804293459,-203.0,0.0004136,2]
[325386909,1714804293470,-3359.4069857,0.00041369,4]
[325386910,1714804293480,-501.32011767,0.00041369,31]
[325386911,1714804293490,-518.13932758,0.00041369,31]
[325386912,1714804293501,-506.71004341,0.00041369,31]
[325386913,1714804293511,-500.0,0.00041369,31]
[325386914,1714804293522,-623.92699444,0.00041369,31]
[325386915,1714804293532,-496.75865701,0.00041369,31]
[325386916,1714804293541,-500.0,0.00041369,31]
[325386917,1714804293551,-341.19,0.00041369,31]
[325386918,1714804293561,-504.35415715,0.00041369,31]
[325386919,1714804293572,-502.47993721,0.00041369,31]
[325386920,1714804293582,-500.69849181,0.00041369,31]
[325386921,1714804293593,-157.94179492,0.00041369,31]
[325386922,1714804293606,-501.49411061,0.00041369,31]
[325386923,1714804293617,-500.0,0.00041369,31]
[325386924,1714804293627,-500.0,0.00041369,31]
[325386925,1714804293638,-151.0,0.00041369,14]
[325386926,1714804293649,-503.06653948,0.00041369,31]
[325386927,1714804293659,-500.0,0.00041369,31]
[325386928,1714804293671,-500.0,0.00041369,31]
[325386929,1714804293680,-500.28623124,0.00041369,31]
[325386930,1714804293690,-709.33,0.00041369,31]
[325386931,1714804293700,-500.0,0.00041369,31]
[325386932,1714804293710,-500.0,0.00041369,31]
[325386933,1714804293720,-531.31,0.00041369,31]
[325386934,1714804293729,-500.0,0.00041369,31]
[325386935,1714804293739,-500.0,0.00041369,31]
[325386936,1714804293749,-1032.2,0.00041369,31]
[325386937,1714804293759,-816.23,0.00041369,31]
[325386938,1714804293769,-283.008644,0.00041369,14]
[325386939,1714804293778,-283.008654,0.00041369,14]
[325386940,1714804293788,-500.0,0.00041369,31]
[325386941,1714804293799,-500.0,0.00041369,31]
[325386942,1714804293808,-500.0,0.00041369,31]
[325386943,1714804293819,-500.0,0.00041369,31]
[325386944,1714804293829,-500.0,0.00041369,31]
[325386945,1714804293839,-500.0,0.00041369,120]
[325386946,1714804293849,-518.34,0.00041369,31]
[325386947,1714804293859,-1744.77,0.00041369,31]
[325386948,1714804293870,-500.0,0.00041369,31]
[325386949,1714804293879,-1526.14,0.00041369,31]
[325386950,1714804293889,-1586.24,0.00041369,31]
[325386951,1714804293899,-500.0,0.00041369,31]
[325386952,1714804293908,-1278.64,0.00041369,31]
[325386953,1714804293919,-500.0,0.00041369,31]
[325386954,1714804293928,-500.0,0.00041369,31]
[325386955,1714804293938,-500.0,0.00041369,31]
[325386956,1714804293948,-500.0,0.00041369,31]
[325386957,1714804293959,-554.16245668,0.00041369,31]
[325386958,1714804293970,-921.15,0.00041369,31]
[325386959,1714804293980,-500.0,0.00041369,31]
[325386960,1714804293990,-1137.38,0.00041369,31]
[325386961,1714804294001,-500.0,0.00041369,31]
[325386962,1714804294011,-1395.23,0.00041369,31]
[325386963,1714804294020,-1495.01,0.00041369,31]
[325386964,1714804294031,-500.0,0.00041369,31]
[325386965,1714804294042,-797.84,0.00041369,31]
[325386966,1714804294052,-504.37201808,0.00041369,31]
[325386967,1714804294062,-500.0,0.00041369,31]
[325386968,1714804294071,-1064.02,0.00041369,31]
[325386969,1714804294081,-1645.21,0.00041369,31]
[325386970,1714804294092,-500.0,0.00041369,31]
[325386971,1714804294102,-500.0,0.00041369,31]
[325386972,1714804294112,-493.92804928,0.00041369,31]
[325386973,1714804294122,-500.0,0.00041369,31]
[325386974,1714804294132,-523.16750592,0.00041369,31]
[325386975,1714804294142,-500.0,0.00041369,31]
[325386976,1714804294152,-506.5662323,0.00041369,31]
[325386977,1714804294163,-500.0,0.00041369,31]
[325386978,1714804294173,-500.0,0.00041369,31]
[325386979,1714804294183,-226.889923,0.00041369,14]
[325386980,1714804294193,-500.0,0.00041369,31]
[325386981,1714804294429,-500.0,0.00041369,31]
[325386982,1714804294440,-500.0,0.00041369,31]
[325386983,1714804294451,-500.0,0.00041369,31]
[325386984,1714804294460,-543.96,0.00041369,31]
[325386985,1714804294471,-500.0,0.00041369,31]
[325386986,1714804294481,-819.19,0.00041369,31]
[325386987,1714804294491,-685.1,0.00041369,31]
[325386988,1714804294500,-1005.46,0.00041369,31]
[325386989,1714804294510,-476.51704605,0.00041369,31]
[325386990,1714804294520,-226.889927,0.00041369,14]
[325386991,1714804294530,-1212.58,0.00041369,31]
[325386992,1714804294541,-500.0,0.00041369,31]
[325386993,1714804294550,-500.0,0.00041369,31]
[325386994,1714804294560,-181.92438,0.00041369,14]
[325386995,1714804294570,-500.0,0.00041369,31]
[325386996,1714804294579,-500.0,0.00041369,31]
[325386997,1714804294590,-500.0,0.00041369,31]
[325386998,1714804294604,-1006.13,0.00041369,31]
[325386999,1714804294614,-710.33,0.00041369,31]
[325387000,1714804294623,-769.13,0.00041369,31]
[325387001,1714804294634,-181.924386,0.00041369,14]
[325387002,1714804294644,-627.32069728,0.00041369,31]
[325387003,1714804294654,-631.98,0.00041369,31]
[325387004,1714804294663,-597.77,0.00041369,31]
[325387005,1714804294676,-199.48643,0.00041369,14]
[325387006,1714804294686,-813.79,0.00041369,31]
[325387007,1714804294696,-199.48643,0.00041369,14]
[325387008,1714804294706,-500.0,0.00041369,31]
[325387009,1714804294717,-500.0,0.00041369,31]
[325387010,1714804294727,-557.24796261,0.00041369,31]
[325387011,1714804294737,-199.48643,0.00041369,14]
[325387012,1714804294747,-163.705615,0.00041369,31]
[325387013,1714804294757,-199.486435,0.00041369,14]
[325387014,1714804294767,-500.0,0.00041369,31]
[325387015,1714804294776,-500.0,0.00041369,31]
[325387016,1714804294786,-500.0,0.00041369,31]
[325387017,1714804294796,-500.0,0.00041369,31]
[325387018,1714804294805,-889.31,0.00041369,31]
[325387019,1714804294815,-548.19,0.00041369,31]
[325387020,1714804294825,-500.0,0.00041369,31]
[325387021,1714804294834,-784.04,0.00041369,31]
[325387022,1714804294844,-835.84,0.00041369,31]
[325387023,1714804294853,-151.0,0.00041369,14]
[325387024,1714804294862,-500.0,0.00041369,31]
[325387025,1714804294871,-500.0,0.00041369,31]
[325387026,1714804294881,-500.0,0.00041369,31]
[325387027,1714804294891,-679.69,0.00041369,31]
[325387028,1714804294900,-500.0,0.00041369,31]
[325387029,1714804294909,-545.44,0.00041369,31]
[325387030,1714804294919,-500.0,0.00041369,31]
[325387031,1714804294928,-500.0,0.00041369,31]
[325387032,1714804294937,-1146.79,0.00041369,31]
[325387033,1714804294946,-237.512164,0.00041369,14]
[325387034,1714804294955,-500.0,0.00041369,31]
[325387035,1714804294965,-1237.72,0.00041369,31]
[325387036,1714804294974,-620.05,0.00041369,31]
[325387037,1714804294983,-906.76,0.00041369,31]
[325387038,1714804294993,-500.0,0.00041369,31]
[325387039,1714804295001,-237.512173,0.00041369,14]
[325387040,1714804295010,-1642.49,0.00041369,31]
[325387041,1714804295020,-1017.46,0.00041369,31]
[325387042,1714804295030,-597.66,0.00041369,31]
[325387043,1714804295039,-500.0,0.00041369,31]
[325387044,1714804295049,-500.0,0.00041369,31]
[325387045,1714804295058,-500.0,0.00041369,31]
[325387046,1714804295067,-510.73838401,0.00041369,31]
[325387047,1714804295076,-500.0,0.00041369,31]
[325387048,1714804295085,-552.42,0.00041369,31]
[325387049,1714804295095,-1374.93,0.00041369,31]
[325387050,1714804295104,-1268.65,0.00041369,31]
[325387051,1714804295114,-871.22,0.00041369,31]
[325387052,1714804295123,-633.47675775,0.00041369,31]
[325387053,1714804295132,-151.0,0.00041369,14]
[325387054,1714804295142,-151.0,0.00041369,14]
[325387055,1714804295151,-500.0,0.00041369,31]
[325387056,1714804295160,-824.38,0.00041369,31]
[325387057,1714804295170,-1511.96515033,0.00041369,31]
[325387058,1714804295180,-500.0,0.00041369,31]
[325387059,1714804295191,-500.0,0.00041369,31]
[325387060,1714804295201,-500.0,0.00041369,31]
[325387061,1714804295210,-500.0,0.00041369,31]
[325387062,1714804295221,-500.0,0.00041369,31]
[325387063,1714804295231,-1527.39,0.00041369,31]
[325387064,1714804295242,-500.0,0.00041369,31]
[325387065,1714804295252,-640.98,0.00041369,31]
[325387066,1714804295262,-500.0,0.00041369,31]
[325387067,1714804295273,-1148.6,0.00041369,31]
[325387068,1714804295284,-500.0,0.00041369,31]
[325387069,1714804295294,-500.0,0.00041369,31]
[325387070,1714804295304,-659.88,0.00041369,31]
[325387071,1714804295314,-500.0,0.00041369,31]
[325387072,1714804295324,-501.88631943,0.00041369,31]
[325387073,1714804295334,-500.0,0.00041369,31]
[325387074,1714804295344,-584.80001829,0.00041369,31]
[325387075,1714804295354,-505.12,0.00041369,31]
[325387076,1714804295365,-504.22829142,0.00041369,31]
[325387077,1714804295376,-500.0,0.00041369,31]
[325387078,1714804295386,-1112.93,0.00041369,31]
[325387079,1714804295396,-500.0,0.00041369,31]
[325387080,1714804295406,-1147.27,0.00041369,31]
[325387081,1714804295415,-500.0,0.00041369,31]
[325387082,1714804295425,-500.0,0.00041369,31]
[325387083,1714804295435,-1210.16,0.00041369,31]
[325387084,1714804295445,-500.0,0.00041369,31]
[325387085,1714804295456,-500.0,0.00041369,31]
[325387086,1714804295467,-1405.57,0.00041369,31]
[325387087,1714804295479,-1566.87,0.00041369,31]
[325387088,1714804295490,-500.0,0.00041369,31]
[325387089,1714804295500,-815.13,0.00041369,31]
[325387090,1714804295510,-500.0,0.00041369,31]
[325387091,1714804295520,-500.0,0.00041369,31]
[325387092,1714804295531,-500.0,0.00041369,31]
[325387093,1714804295541,-500.0,0.00041369,31]
[325387094,1714804295551,-500.0,0.00041369,31]
[325387095,1714804295561,-500.0,0.00041369,31]
[325387096,1714804295571,-500.0,0.00041369,31]
[325387097,1714804295582,-521.51,0.00041369,31]
[325387098,1714804295594,-259.82501256,0.00041369,31]
[325387099,1714804295608,-500.0,0.00041369,31]
[325387100,1714804295618,-500.0,0.00041369,31]
[325387101,1714804295628,-500.0,0.00041369,31]
[325387102,1714804295639,-1363.53,0.00041369,31]
[325387103,1714804295649,-500.0,0.00041369,31]
[325387104,1714804295659,-500.0,0.00041369,31]
[325387105,1714804295668,-1209.68,0.00041369,31]
[325387106,1714804295681,-500.0,0.00041369,31]
[325387107,1714804295692,-500.0,0.00041369,31]
[325387108,1714804295702,-565.5,0.00041369,31]
[325387109,1714804295711,-761.51,0.00041369,31]
[325387110,1714804295722,-500.0,0.00041369,31]
[325387111,1714804295731,-500.0,0.00041369,31]
[325387112,1714804295740,-500.0,0.00041369,31]
[325387113,1714804295750,-502.47290172,0.00041369,31]
[325387114,1714804295760,-1983.56,0.00041369,31]
[325387115,1714804295771,-500.0,0.00041369,31]
[325387116,1714804295781,-500.0,0.00041369,31]
[325387117,1714804295791,-660.69,0.00041369,31]
[325387118,1714804295802,-806.86,0.00041369,31]
[325387119,1714804295812,-500.0,0.00041369,31]
[325387120,1714804295822,-500.0,0.00041369,31]
[325387121,1714804295832,-1416.19,0.00041369,31]
[325387122,1714804295841,-500.0,0.00041369,31]
[325387123,1714804295851,-1092.41,0.00041369,31]
[325387124,1714804295861,-500.0,0.00041369,31]
[325387125,1714804295872,-1020.35,0.00041369,31]
[325387126,1714804295882,-834.0,0.00041369,31]
[325387127,1714804295892,-536.36,0.00041369,31]
[325387128,1714804295902,-500.0,0.00041369,31]
[325387129,1714804295913,-500.0,0.00041369,31]
[325387130,1714804295923,-500.0,0.00041369,31]
[325387131,1714804295933,-500.0,0.00041369,31]
[325387132,1714804295943,-500.0,0.00041369,2]
[325387133,1714804295953,-589.01572066,0.00041369,31]
[325387134,1714804295964,-533.11,0.00041369,31]
[325387135,1714804295974,-500.0,0.00041369,31]
[325387136,1714804295983,-500.0,0.00041369,31]
[325387137,1714804295993,-500.0,0.00041369,31]
[325387138,1714804296003,-500.0,0.00041369,31]
[325387139,1714804296013,-500.0,0.00041369,31]
[325387140,1714804296024,-500.0,0.00041369,31]
[325387141,1714804296035,-1444.23,0.00041369,31]
[325387142,1714804296045,-500.0,0.00041369,31]
[325387143,1714804296055,-761.8,0.00041369,31]
[325387144,1714804296064,-961.56,0.00041369,31]
[325387145,1714804296074,-507.83,0.00041369,2]
[325387146,1714804296084,-500.0,0.00041369,31]
[325387147,1714804296094,-1168.68,0.00041369,31]
[325387148,1714804296103,-821.47,0.00041369,31]
[325387149,1714804296114,-1417.67,0.00041369,31]
[325387150,1714804296124,-500.0,0.00041369,31]
[325387151,1714804296139,-1214.66,0.00041369,31]
[325387152,1714804296149,-1108.1,0.00041369,31]
[325387153,1714804296159,-1117.94,0.00041369,31]
[325387154,1714804296168,-500.0,0.00041369,31]
[325387155,1714804296178,-500.0,0.00041369,31]
[325387156,1714804296188,-500.0,0.00041369,31]
[325387157,1714804296197,-500.0,0.00041369,31]
[325387158,1714804296207,-1253.45,0.00041369,31]
[325387159,1714804296218,-500.0,0.00041369,31]
[325387160,1714804296227,-500.0,0.00041369,31]
[325387161,1714804296237,-500.0,0.00041369,31]
[325387162,1714804296247,-500.0,0.00041369,31]
[325387163,1714804296256,-500.0,0.00041369,31]
[325387164,1714804296266,-608.67,0.00041369,31]
[325387165,1714804296276,-500.0,0.00041369,31]
[325387166,1714804296286,-1705.9,0.00041369,31]
[325387167,1714804296296,-500.0,0.00041369,31]
[325387168,1714804296305,-500.0,0.00041369,31]
[325387169,1714804296315,-989.33,0.00041369,31]
[325387170,1714804296325,-500.0,0.00041369,31]
[325387171,1714804296335,-500.0,0.00041369,31]
[325387172,1714804296346,-500.0,0.00041369,31]
[325387173,1714804296355,-500.0,0.00041369,31]
[325387174,1714804296365,-1148.55,0.00041369,31]
[325387175,1714804296374,-500.0,0.00041369,31]
[325387176,1714804296384,-504.99541304,0.00041369,31]
[325387177,1714804296395,-500.0,0.00041369,31]
[325387178,1714804296404,-501.43063481,0.00041369,31]
[325387179,1714804296414,-507.32355904,0.00041369,31]
[325387180,1714804296424,-962.07,0.00041369,31]
[325387181,1714804296433,-799.27,0.00041369,31]
[325387182,1714804296442,-1273.17,0.00041369,31]
[325387183,1714804296452,-500.0,0.00041369,31]
[325387184,1714804296462,-500.0,0.00041369,31]
[325387185,1714804296472,-500.0,0.00041369,31]
[325387186,1714804296482,-500.0,0.00041369,31]
[325387187,1714804296492,-500.0,0.00041369,31]
[325387188,1714804296501,-743.85,0.00041369,31]
[325387189,1714804296511,-1314.71,0.00041369,31]
[325387190,1714804296521,-500.0,0.00041369,31]
[325387191,1714804296531,-500.0,0.00041369,31]
[325387192,1714804296541,-500.0,0.00041369,31]
[325387193,1714804296550,-500.59518295,0.00041369,31]
[325387194,1714804296560,-217.35,0.00041369,31]
[325387195,1714804296570,-1040.47,0.00041369,2]
[325387196,1714804296579,-500.0,0.00041369,31]
[325387197,1714804296590,-982.9,0.00041369,31]
[325387198,1714804296604,-937.01,0.00041369,31]
[325387199,1714804296614,-1558.67,0.00041369,31]
[325387200,1714804296624,-500.0,0.00041369,31]
[325387201,1714804296635,-500.0,0.00041369,31]
[325387202,1714804296644,-500.0,0.00041369,31]
[325387203,1714804296653,-500.0,0.00041369,31]
[325387204,1714804296663,-500.0,0.00041369,31]
[325387205,1714804296674,-615.9,0.00041369,31]
[325387206,1714804296683,-978.41,0.00041369,31]
[325387207,1714804296693,-808.14,0.00041369,31]